[Event "World Junior Chess Championship U20 2022"]
[White "Olsen, Filip Boe"]
[Black "Candian, Lorenzo"]
[WhiteFideId "1440640"]
[BlackFideId "2863664"]
[WhiteElo "2433"]
[BlackElo "2022"]
[Result "1-0"]
[Round "05"]
[TimeControl "5400+30"]
[Date "2022.10.15"]
[WhiteClock "0:23:12"]
[BlackClock "0:09:13"]

1. d4 {[%clk 1:30:56]}  Nf6 {[%clk 1:30:13]} 2. c4 {[%clk 1:31:17]}  g6 {[%clk 1:30:26]} 3. Nc3 {[%clk 1:31:30]}  d5 {[%clk 1:30:50]} 4. h4 {[%clk 1:29:55]}  Bg7 {[%clk 1:30:33]} 5. h5 {[%clk 1:30:05]}  Nxh5 {[%clk 1:29:52]} 6. cxd5 {[%clk 1:30:22]}  c6 {[%clk 1:21:52]} 7. e4 {[%clk 1:30:24]}  Nf6 {[%clk 1:18:43]} 8. dxc6 {[%clk 1:19:49]}  bxc6 {[%clk 1:18:40]} 9. f3 {[%clk 1:14:42]}  Qc7 {[%clk 1:14:22]} 10. Nge2 {[%clk 1:11:31]}  Nbd7 {[%clk 1:13:37]} 11. Be3 {[%clk 0:56:15]}  Rb8 {[%clk 0:53:18]} 12. Qd2 {[%clk 0:49:53]}  Qa5 {[%clk 0:45:48]} 13. Rc1 {[%clk 0:45:01]}  Ba6 {[%clk 0:32:15]} 14. b3 {[%clk 0:40:56]}  c5 {[%clk 0:29:43]} 15. Kf2 {[%clk 0:28:31]}  Bxe2 {[%clk 0:23:43]} 16. Bxe2 {[%clk 0:28:28]}  cxd4 {[%clk 0:23:49]} 17. Bxd4 {[%clk 0:28:38]}  O-O {[%clk 0:23:16]} 18. Rhd1 {[%clk 0:26:31]}  Rbc8 {[%clk 0:19:56]} 19. Bc4 {[%clk 0:23:37]}  Rfd8 {[%clk 0:16:19]} 20. Nb5 {[%clk 0:22:21]}  Qxd2+ {[%clk 0:15:51]} 21. Rxd2 {[%clk 0:22:50]}  Bh6 {[%clk 0:15:37]} 22. Be3 {[%clk 0:23:10]}  Bxe3+ {[%clk 0:15:49]} 23. Kxe3 {[%clk 0:23:38]}  a6 {[%clk 0:12:54]} 24. Na7 {[%clk 0:22:52]}  Ra8 {[%clk 0:08:52]} 25. Nc6 {[%clk 0:23:10]}  Re8 {[%clk 0:09:13]} 26. e5 {[%clk 0:23:12]} 1-0


[Site "http://www.chessbomb.com"]

[Event "World Junior Chess Championship U20 2022"]
[White "Lumachi, Gabriele"]
[Black "Sitbon, Itay"]
[WhiteFideId "2817247"]
[BlackFideId "2820706"]
[WhiteElo "2387"]
[BlackElo "2133"]
[Result "1-0"]
[Round "05"]
[TimeControl "5400+30"]
[Date "2022.10.15"]
[WhiteClock "0:45:58"]
[BlackClock "0:12:57"]

1. Nf3 {[%clk 1:30:55]}  Nf6 {[%clk 1:29:42]} 2. d4 {[%clk 1:31:15]}  d5 {[%clk 1:29:09]} 3. c3 {[%clk 1:31:37]}  c5 {[%clk 1:27:42]} 4. dxc5 {[%clk 1:32:01]}  a5 {[%clk 1:25:14]} 5. c4 {[%clk 1:29:57]}  e6 {[%clk 1:18:51]} 6. Be3 {[%clk 1:30:20]}  Na6 {[%clk 1:15:53]} 7. cxd5 {[%clk 1:30:43]}  Nxd5 {[%clk 1:11:44]} 8. Bd4 {[%clk 1:31:06]}  Nxc5 {[%clk 1:10:17]} 9. e3 {[%clk 1:31:28]}  Nf6 {[%clk 1:10:17]} 10. Nc3 {[%clk 1:32:09]}  Be7 {[%clk 1:06:44]} 11. Bc4 {[%clk 1:31:50]}  O-O {[%clk 1:06:37]} 12. O-O {[%clk 1:32:27]}  b6 {[%clk 0:57:51]} 13. Qc2 {[%clk 1:32:27]}  Bb7 {[%clk 0:57:51]} 14. Rfd1 {[%clk 1:32:52]}  Qc8 {[%clk 0:57:51]} 15. Rac1 {[%clk 1:32:52]}  Rd8 {[%clk 0:56:42]} 16. Ne5 {[%clk 1:31:55]}  Ncd7 {[%clk 0:54:36]} 17. Bf1 {[%clk 1:27:43]}  Nxe5 {[%clk 0:51:18]} 18. Bxe5 {[%clk 1:28:06]}  Rxd1 {[%clk 0:51:03]} 19. Qxd1 {[%clk 1:26:03]}  Qd8 {[%clk 0:44:28]} 20. Na4 {[%clk 1:24:07]}  Qxd1 {[%clk 0:39:28]} 21. Rxd1 {[%clk 1:24:27]}  Rd8 {[%clk 0:38:16]} 22. Rc1 {[%clk 1:17:08]}  Nd7 {[%clk 0:38:06]} 23. Bd4 {[%clk 1:12:41]}  e5 {[%clk 0:33:51]} 24. Bxb6 {[%clk 1:10:21]}  Nxb6 {[%clk 0:33:36]} 25. Nxb6 {[%clk 0:53:21]}  Bd5 {[%clk 0:26:31]} 26. Rc7 {[%clk 0:53:21]}  Bd6 {[%clk 0:26:31]} 27. Nxd5 {[%clk 0:45:27]}  Bxc7 {[%clk 0:26:54]} 28. Nxc7 {[%clk 0:44:05]}  a4 {[%clk 0:26:54]} 29. b4 {[%clk 0:44:11]}  axb3 {[%clk 0:16:05]} 30. axb3 {[%clk 0:44:11]}  Rd1 {[%clk 0:15:26]} 31. b4 {[%clk 0:44:55]}  Rb1 {[%clk 0:15:43]} 32. b5 {[%clk 0:43:44]}  Kf8 {[%clk 0:13:55]} 33. g4 {[%clk 0:44:09]}  Ke7 {[%clk 0:15:50]} 34. Nd5+ {[%clk 0:44:27]}  Kd6 {[%clk 0:15:49]} 35. Nc3 {[%clk 0:44:47]}  Rb4 {[%clk 0:13:55]} 36. h3 {[%clk 0:44:28]}  h6 {[%clk 0:13:51]} 37. Kg2 {[%clk 0:44:47]}  g6 {[%clk 0:13:55]} 38. Bd3 {[%clk 0:42:02]}  f5 {[%clk 0:11:42]} 39. gxf5 {[%clk 0:42:00]}  gxf5 {[%clk 0:12:03]} 40. Bxf5 {[%clk 0:42:12]}  Rb3 {[%clk 0:12:02]} 41. Ne4+ {[%clk 0:42:35]}  Ke7 {[%clk 0:11:59]} 42. Bd7 {[%clk 0:42:59]}  Rb4 {[%clk 0:11:58]} 43. Bc6 {[%clk 0:43:22]}  Kf7 {[%clk 0:12:01]} 44. Kg3 {[%clk 0:43:22]}  Kg6 {[%clk 0:12:26]} 45. Nc3 {[%clk 0:43:34]}  e4 {[%clk 0:11:51]} 46. Nxe4 {[%clk 0:43:46]}  Rc4 {[%clk 0:11:13]} 47. Be8+ {[%clk 0:43:29]}  Kg7 {[%clk 0:11:35]} 48. Kf4 {[%clk 0:43:29]}  Rc8 {[%clk 0:11:51]} 49. Bc6 {[%clk 0:44:06]}  Kg6 {[%clk 0:12:17]} 50. Ke5 {[%clk 0:44:12]}  Kh5 {[%clk 0:12:22]} 51. Kd6 {[%clk 0:44:35]}  Kh4 {[%clk 0:12:27]} 52. b6 {[%clk 0:45:02]}  h5 {[%clk 0:12:40]} 53. b7 {[%clk 0:45:16]}  Rd8+ {[%clk 0:12:50]} 54. Kc7 {[%clk 0:45:35]}  Rc8+ {[%clk 0:12:57]} 55. Kxc8 {[%clk 0:45:58]} 1-0


[Site "http://www.chessbomb.com"]

[Event "World Junior Chess Championship U20 2022"]
[White "Johannsson, Birkir Isak"]
[Black "Guz, Ari"]
[WhiteFideId "2314673"]
[BlackFideId "2825759"]
[WhiteElo "2165"]
[BlackElo "2305"]
[Result "1/2-1/2"]
[Round "05"]
[TimeControl "5400+30"]
[Date "2022.10.15"]
[WhiteClock "0:34:45"]
[BlackClock "1:07:04"]

1. d4 {[%clk 1:27:12]}  Nf6 {[%clk 1:30:27]} 2. c4 {[%clk 1:27:36]}  e6 {[%clk 1:30:38]} 3. Nf3 {[%clk 1:28:00]}  d5 {[%clk 1:30:35]} 4. g3 {[%clk 1:28:20]}  dxc4 {[%clk 1:30:38]} 5. Bg2 {[%clk 1:28:40]}  Bb4+ {[%clk 1:30:57]} 6. Bd2 {[%clk 1:28:48]}  a5 {[%clk 1:31:17]} 7. Qc1 {[%clk 1:25:15]}  Bxd2+ {[%clk 1:30:18]} 8. Qxd2 {[%clk 1:24:44]}  c6 {[%clk 1:30:21]} 9. a4 {[%clk 1:23:42]}  b5 {[%clk 1:28:01]} 10. axb5 {[%clk 1:22:41]}  cxb5 {[%clk 1:28:28]} 11. Qg5 {[%clk 1:22:56]}  O-O {[%clk 1:28:48]} 12. Qxb5 {[%clk 1:21:07]}  Ba6 {[%clk 1:28:55]} 13. Qxa5 {[%clk 1:16:27]}  Bb7 {[%clk 1:29:09]} 14. Qxd8 {[%clk 1:11:09]}  Rxa1 {[%clk 1:29:30]} 15. Qxf8+ {[%clk 1:03:13]}  Kxf8 {[%clk 1:29:51]} 16. O-O {[%clk 1:01:01]}  Ra2 {[%clk 1:29:46]} 17. Rc1 {[%clk 0:50:20]}  Rxb2 {[%clk 1:24:06]} 18. Nbd2 {[%clk 0:42:37]}  Bxf3 {[%clk 1:22:53]} 19. Nxf3 {[%clk 0:42:54]}  Rxe2 {[%clk 1:22:54]} 20. Rxc4 {[%clk 0:41:55]}  Nbd7 {[%clk 1:21:39]} 21. Rc7 {[%clk 0:38:54]}  Ke7 {[%clk 1:10:00]} 22. Kf1 {[%clk 0:33:25]}  Ra2 {[%clk 1:08:17]} 23. Ne5 {[%clk 0:33:28]}  Ra1+ {[%clk 1:05:48]} 24. Ke2 {[%clk 0:33:47]}  Ra2+ {[%clk 1:06:12]} 25. Kf1 {[%clk 0:33:59]}  Ra1+ {[%clk 1:06:36]} 26. Ke2 {[%clk 0:34:28]}  Ra2+ {[%clk 1:07:04]} 27. Kf1 {[%clk 0:34:45]} 1/2-1/2


[Site "http://www.chessbomb.com"]

[Event "World Junior Chess Championship U20 2022"]
[White "Stolyarsky, Yegor"]
[Black "Bettalli, Francesco"]
[WhiteFideId "2814595"]
[BlackFideId "2816453"]
[WhiteElo "1987"]
[BlackElo "2267"]
[Result "0-1"]
[Round "05"]
[TimeControl "5400+30"]
[Date "2022.10.15"]
[WhiteClock "0:05:49"]
[BlackClock "0:13:38"]

1. d4 {[%clk 0:00:00]}  Nf6 {[%clk 1:30:53]} 2. c4 {[%clk 1:30:47]}  c5 {[%clk 1:31:10]} 3. d5 {[%clk 1:31:03]}  a6 {[%clk 1:31:35]} 4. a4 {[%clk 1:31:01]}  d6 {[%clk 1:31:56]} 5. Nc3 {[%clk 1:30:23]}  g6 {[%clk 1:32:18]} 6. e4 {[%clk 1:30:10]}  e6 {[%clk 1:32:23]} 7. Nf3 {[%clk 1:29:06]}  Bg7 {[%clk 1:16:17]} 8. h3 {[%clk 1:29:11]}  Qe7 {[%clk 1:15:27]} 9. Be3 {[%clk 1:21:19]}  a5 {[%clk 1:07:06]} 10. e5 {[%clk 1:12:02]}  dxe5 {[%clk 1:01:02]} 11. d6 {[%clk 1:11:39]}  Qd8 {[%clk 1:01:23]} 12. Bxc5 {[%clk 1:10:43]}  Nfd7 {[%clk 1:00:42]} 13. Be3 {[%clk 1:09:03]}  O-O {[%clk 0:59:28]} 14. Qd2 {[%clk 1:01:21]}  Na6 {[%clk 0:49:38]} 15. g4 {[%clk 0:38:11]}  Ndc5 {[%clk 0:45:54]} 16. Rd1 {[%clk 0:36:28]}  Bd7 {[%clk 0:45:39]} 17. Bg2 {[%clk 0:31:30]}  Bc6 {[%clk 0:42:30]} 18. O-O {[%clk 0:29:45]}  Qd7 {[%clk 0:40:23]} 19. Bh6 {[%clk 0:27:51]}  Bxh6 {[%clk 0:33:01]} 20. Qxh6 {[%clk 0:28:02]}  f6 {[%clk 0:33:29]} 21. g5 {[%clk 0:25:48]}  Bxf3 {[%clk 0:33:35]} 22. Bxf3 {[%clk 0:25:56]}  f5 {[%clk 0:34:02]} 23. h4 {[%clk 0:24:04]}  Rf7 {[%clk 0:30:01]} 24. Kg2 {[%clk 0:17:16]}  Nb4 {[%clk 0:27:46]} 25. Be2 {[%clk 0:16:04]}  Rg7 {[%clk 0:27:03]} 26. Rh1 {[%clk 0:16:20]}  Nc6 {[%clk 0:26:44]} 27. h5 {[%clk 0:16:42]}  Rd8 {[%clk 0:17:50]} 28. Nb5 {[%clk 0:15:17]}  Ne4 {[%clk 0:16:19]} 29. Bf3 {[%clk 0:15:09]}  Nxg5 {[%clk 0:16:12]} 30. Qxg5 {[%clk 0:12:34]}  gxh5 {[%clk 0:16:40]} 31. Rxh5 {[%clk 0:11:21]}  Rxg5+ {[%clk 0:16:48]} 32. Rxg5+ {[%clk 0:11:45]}  Kh8 {[%clk 0:17:14]} 33. Bxc6 {[%clk 0:09:18]}  Qxc6+ {[%clk 0:16:19]} 34. f3 {[%clk 0:08:37]}  Qxc4 {[%clk 0:16:35]} 35. Rg1 {[%clk 0:07:48]}  Qxa4 {[%clk 0:15:04]} 36. Nc7 {[%clk 0:08:04]}  Qd7 {[%clk 0:13:59]} 37. Kh2 {[%clk 0:04:14]}  Qxd6 {[%clk 0:13:49]} 38. Rg7 {[%clk 0:04:39]}  Qd2+ {[%clk 0:13:22]} 39. R1g2 {[%clk 0:05:01]}  Qh6+ {[%clk 0:13:49]} 40. Kg1 {[%clk 0:05:25]}  Rd1+ {[%clk 0:14:12]} 41. Kf2 {[%clk 0:05:49]}  Qxg7 {[%clk 0:13:38]} 0-1


[Site "http://www.chessbomb.com"]

[Event "World Junior Chess Championship U20 2022"]
[White "Cappelletto, Joshuaede"]
[Black "Momin, Fayzan"]
[WhiteFideId "2824383"]
[BlackFideId "7805225"]
[WhiteElo "2337"]
[BlackElo "1974"]
[Result "0-1"]
[Round "05"]
[TimeControl "5400+30"]
[Date "2022.10.15"]
[WhiteClock "0:52:42"]
[BlackClock "0:53:00"]

1. e4 {[%clk 0:00:00]}  c5 {[%clk 1:30:57]} 2. Nf3 {[%clk 1:31:22]}  d6 {[%clk 1:31:24]} 3. d4 {[%clk 1:30:19]}  cxd4 {[%clk 1:31:52]} 4. Nxd4 {[%clk 1:30:43]}  Nf6 {[%clk 1:31:52]} 5. Nc3 {[%clk 1:31:10]}  a6 {[%clk 1:32:42]} 6. h3 {[%clk 1:30:17]}  e5 {[%clk 1:33:10]} 7. Nb3 {[%clk 1:30:41]}  Be7 {[%clk 1:33:05]} 8. Be3 {[%clk 1:30:37]}  Nbd7 {[%clk 1:32:46]} 9. a4 {[%clk 1:27:44]}  b6 {[%clk 1:33:11]} 10. g4 {[%clk 1:27:44]}  Bb7 {[%clk 1:33:29]} 11. Bg2 {[%clk 1:27:52]}  Rc8 {[%clk 1:32:54]} 12. g5 {[%clk 1:27:55]}  Rxc3 {[%clk 1:33:08]} 13. gxf6 {[%clk 1:19:30]}  Rxe3+ {[%clk 1:33:30]} 14. fxe3 {[%clk 1:19:30]}  Nxf6 {[%clk 1:33:51]} 15. Qd3 {[%clk 1:19:53]}  O-O {[%clk 1:32:42]} 16. a5 {[%clk 1:16:09]}  b5 {[%clk 1:32:34]} 17. O-O-O {[%clk 1:16:14]}  Qa8 {[%clk 1:32:51]} 18. Rhg1 {[%clk 1:13:10]}  Nxe4 {[%clk 1:31:34]} 19. Qe2 {[%clk 1:13:25]}  g6 {[%clk 1:29:40]} 20. Nd2 {[%clk 1:07:52]}  Nxd2 {[%clk 1:29:45]} 21. Qxd2 {[%clk 1:07:31]}  e4 {[%clk 1:29:29]} 22. Kb1 {[%clk 1:05:52]}  d5 {[%clk 1:29:45]} 23. Rdf1 {[%clk 1:04:12]}  Qd8 {[%clk 1:29:23]} 24. Rf2 {[%clk 0:53:27]}  Qd6 {[%clk 1:28:21]} 25. Qd4 {[%clk 0:51:33]}  Qc5 {[%clk 1:24:57]} 26. Qe5 {[%clk 0:49:11]}  Qd6 {[%clk 1:24:13]} 27. Qd4 {[%clk 0:49:26]}  f5 {[%clk 1:21:30]} 28. Qa7 {[%clk 0:49:16]}  Qc7 {[%clk 1:21:41]} 29. Qd4 {[%clk 0:48:52]}  Bh4 {[%clk 1:20:12]} 30. Rff1 {[%clk 0:48:42]}  Bf6 {[%clk 1:20:33]} 31. Qd2 {[%clk 0:49:09]}  Qe5 {[%clk 1:20:07]} 32. c3 {[%clk 0:49:32]}  Qc7 {[%clk 1:18:31]} 33. h4 {[%clk 0:49:57]}  Bxh4 {[%clk 1:17:04]} 34. Bh3 {[%clk 0:50:22]}  Qe5 {[%clk 1:16:19]} 35. Rf4 {[%clk 0:49:07]}  Be7 {[%clk 1:14:32]} 36. Qf2 {[%clk 0:48:48]}  Bc8 {[%clk 1:13:52]} 37. Bf1 {[%clk 0:49:11]}  Rf7 {[%clk 1:12:40]} 38. Qd2 {[%clk 0:49:28]}  Be6 {[%clk 1:12:38]} 39. Be2 {[%clk 0:49:52]}  Bd8 {[%clk 1:12:19]} 40. Bd1 {[%clk 0:49:12]}  Bxa5 {[%clk 1:10:57]} 41. Rh4 {[%clk 0:49:37]}  Bd8 {[%clk 1:09:43]} 42. Rh3 {[%clk 0:49:58]}  Bf6 {[%clk 1:01:22]} 43. Rhg3 {[%clk 0:50:18]}  Rg7 {[%clk 0:59:26]} 44. Bb3 {[%clk 0:50:42]}  g5 {[%clk 0:58:12]} 45. R3g2 {[%clk 0:51:08]}  h5 {[%clk 0:55:49]} 46. Kc2 {[%clk 0:51:29]}  h4 {[%clk 0:55:46]} 47. Qc1 {[%clk 0:51:55]}  g4 {[%clk 0:55:56]} 48. Rd2 {[%clk 0:52:20]}  Rc7 {[%clk 0:54:27]} 49. Qa1 {[%clk 0:52:42]}  b4 {[%clk 0:53:00]} 0-1


[Site "http://www.chessbomb.com"]

[Event "World Junior Chess Championship U20 2022"]
[White "Pennica, Andrea"]
[Black "Raahul, V S"]
[WhiteFideId "2816828"]
[BlackFideId "25035525"]
[WhiteElo "2037"]
[BlackElo "2333"]
[Result "1-0"]
[Round "05"]
[TimeControl "5400+30"]
[Date "2022.10.15"]
[WhiteClock "0:08:59"]
[BlackClock "0:19:05"]

1. e4 {[%clk 1:30:50]}  e6 {[%clk 1:30:35]} 2. d4 {[%clk 1:30:26]}  d5 {[%clk 1:30:59]} 3. Nc3 {[%clk 1:30:51]}  Nf6 {[%clk 1:31:24]} 4. Bg5 {[%clk 1:29:51]}  Be7 {[%clk 1:31:34]} 5. e5 {[%clk 1:30:06]}  Nfd7 {[%clk 1:31:28]} 6. h4 {[%clk 1:30:02]}  Nc6 {[%clk 1:31:42]} 7. Qd2 {[%clk 1:29:53]}  Nb6 {[%clk 1:31:49]} 8. O-O-O {[%clk 1:27:31]}  Bd7 {[%clk 1:30:47]} 9. Kb1 {[%clk 1:23:43]}  h6 {[%clk 1:30:18]} 10. Bxe7 {[%clk 1:23:37]}  Qxe7 {[%clk 1:30:42]} 11. f4 {[%clk 1:18:07]}  O-O-O {[%clk 1:30:32]} 12. Nf3 {[%clk 1:17:48]}  f6 {[%clk 1:30:41]} 13. Re1 {[%clk 1:03:40]}  f5 {[%clk 1:21:36]} 14. b3 {[%clk 0:51:13]}  Be8 {[%clk 1:19:31]} 15. Kb2 {[%clk 0:48:11]}  Bh5 {[%clk 1:11:08]} 16. Bb5 {[%clk 0:39:26]}  Nb8 {[%clk 0:55:24]} 17. Be2 {[%clk 0:33:24]}  N8d7 {[%clk 0:46:00]} 18. Reg1 {[%clk 0:26:05]}  Rhg8 {[%clk 0:35:17]} 19. a4 {[%clk 0:23:00]}  Qb4 {[%clk 0:34:01]} 20. Qe3 {[%clk 0:17:02]}  a6 {[%clk 0:32:15]} 21. Ra1 {[%clk 0:14:23]}  Kb8 {[%clk 0:27:16]} 22. a5 {[%clk 0:14:03]}  Nc8 {[%clk 0:27:32]} 23. Ra4 {[%clk 0:14:03]}  Qe7 {[%clk 0:27:56]} 24. b4 {[%clk 0:12:12]}  b5 {[%clk 0:22:42]} 25. axb6 {[%clk 0:08:59]}  Ncxb6 {[%clk 0:23:09]} 26. Ra3 {[%clk 0:09:01]}  Qxb4+ {[%clk 0:20:02]} 27. Rb3 {[%clk 0:09:18]}  Qe7 {[%clk 0:20:28]} 28. Qd3 {[%clk 0:08:22]}  Nf8 {[%clk 0:18:21]} 29. Qxa6 {[%clk 0:08:09]}  Qd7 {[%clk 0:18:15]} 30. Ra1 {[%clk 0:08:28]}  Qc6 {[%clk 0:18:39]} 31. Qa7+ {[%clk 0:08:46]}  Kc8 {[%clk 0:19:05]} 32. Ba6+ {[%clk 0:08:59]} 1-0


[Site "http://www.chessbomb.com"]

[Event "World Junior Chess Championship U20 2022"]
[White "Cotic, Borna"]
[Black "Vairo, Rocco Enrico"]
[WhiteFideId "14542307"]
[BlackFideId "2839437"]
[WhiteElo "2133"]
[BlackElo "1960"]
[Result "1-0"]
[Round "05"]
[TimeControl "5400+30"]
[Date "2022.10.15"]
[WhiteClock "0:15:36"]
[BlackClock "0:34:48"]

1. e4 {[%clk 1:30:51]}  c5 {[%clk 1:22:37]} 2. Nf3 {[%clk 1:31:10]}  Nc6 {[%clk 1:22:55]} 3. Bb5 {[%clk 1:31:32]}  g6 {[%clk 1:23:20]} 4. Bxc6 {[%clk 1:31:55]}  dxc6 {[%clk 1:23:38]} 5. d3 {[%clk 1:32:17]}  Bg7 {[%clk 1:23:59]} 6. h3 {[%clk 1:32:40]}  Nf6 {[%clk 1:24:15]} 7. Nc3 {[%clk 1:32:59]}  O-O {[%clk 1:24:20]} 8. Be3 {[%clk 1:32:59]}  b6 {[%clk 1:24:36]} 9. Qd2 {[%clk 1:33:17]}  e5 {[%clk 1:24:14]} 10. Bh6 {[%clk 1:33:28]}  Qd6 {[%clk 1:23:02]} 11. O-O-O {[%clk 1:33:15]}  b5 {[%clk 1:20:48]} 12. Bxg7 {[%clk 1:30:47]}  Kxg7 {[%clk 1:21:11]} 13. Nh2 {[%clk 1:29:44]}  Be6 {[%clk 1:05:14]} 14. Rdf1 {[%clk 1:14:16]}  Rad8 {[%clk 0:55:41]} 15. Ng4 {[%clk 1:11:52]}  Nh5 {[%clk 0:55:27]} 16. Qh6+ {[%clk 1:09:07]}  Kg8 {[%clk 0:53:33]} 17. f4 {[%clk 1:08:45]}  f6 {[%clk 0:51:53]} 18. f5 {[%clk 0:57:49]}  Bf7 {[%clk 0:52:18]} 19. fxg6 {[%clk 0:44:21]}  Bxg6 {[%clk 0:52:05]} 20. Rf3 {[%clk 0:37:53]}  c4 {[%clk 0:46:21]} 21. dxc4 {[%clk 0:18:28]}  bxc4 {[%clk 0:39:30]} 22. Rd1 {[%clk 0:18:39]}  Qe7 {[%clk 0:39:27]} 23. Rxd8 {[%clk 0:14:14]}  Rxd8 {[%clk 0:39:15]} 24. Qe3 {[%clk 0:14:28]}  Rb8 {[%clk 0:32:52]} 25. Rf2 {[%clk 0:09:31]}  Qb4 {[%clk 0:29:13]} 26. Nd1 {[%clk 0:09:51]}  Qe7 {[%clk 0:23:19]} 27. Rd2 {[%clk 0:10:12]}  Rd8 {[%clk 0:13:43]} 28. Rxd8+ {[%clk 0:09:22]}  Qxd8 {[%clk 0:14:07]} 29. Qxa7 {[%clk 0:09:38]}  Nf4 {[%clk 0:12:03]} 30. Qd7 {[%clk 0:09:18]}  Qxd7 {[%clk 0:09:48]} 31. Nxf6+ {[%clk 0:09:42]}  Kg7 {[%clk 0:10:07]} 32. Nxd7 {[%clk 0:10:08]}  Bxe4 {[%clk 0:10:32]} 33. Nxe5 {[%clk 0:09:37]}  Bxg2 {[%clk 0:10:48]} 34. a4 {[%clk 0:08:01]}  Nxh3 {[%clk 0:10:28]} 35. Ne3 {[%clk 0:08:05]}  Be4 {[%clk 0:10:37]} 36. N5xc4 {[%clk 0:07:45]}  Ng5 {[%clk 0:09:43]} 37. a5 {[%clk 0:07:46]}  c5 {[%clk 0:09:09]} 38. c3 {[%clk 0:05:25]}  h5 {[%clk 0:09:20]} 39. Nd6 {[%clk 0:05:34]}  Bf3 {[%clk 0:08:24]} 40. b4 {[%clk 0:05:07]}  cxb4 {[%clk 0:08:49]} 41. cxb4 {[%clk 0:05:32]}  Ne6 {[%clk 0:08:23]} 42. b5 {[%clk 0:20:34]}  Nc5 {[%clk 0:37:16]} 43. Kc2 {[%clk 0:19:02]}  Kf6 {[%clk 0:37:19]} 44. Kc3 {[%clk 0:15:50]}  h4 {[%clk 0:35:45]} 45. Kc4 {[%clk 0:15:44]}  h3 {[%clk 0:34:31]} 46. Kxc5 {[%clk 0:15:13]}  h2 {[%clk 0:34:57]} 47. Ne4+ {[%clk 0:15:32]}  Ke5 {[%clk 0:34:28]} 48. Nf2 {[%clk 0:15:24]}  Kf4 {[%clk 0:34:48]} 49. Nf1 {[%clk 0:15:36]} 1-0


[Site "http://www.chessbomb.com"]

[Event "World Junior Chess Championship U20 2022"]
[White "Urbani, Gabriel"]
[Black "De Ieso, Lorenzo"]
[WhiteFideId "2830138"]
[BlackFideId "2894101"]
[WhiteElo "2129"]
[BlackElo "1938"]
[Result "1-0"]
[Round "05"]
[TimeControl "5400+30"]
[Date "2022.10.15"]
[WhiteClock "0:06:34"]
[BlackClock "0:17:27"]

1. e4 {[%clk 0:00:00]}  c5 {[%clk 1:30:53]} 2. Nf3 {[%clk 1:31:08]}  d6 {[%clk 1:31:17]} 3. d4 {[%clk 1:31:31]}  cxd4 {[%clk 1:31:43]} 4. Nxd4 {[%clk 1:31:58]}  Nf6 {[%clk 1:32:07]} 5. Nc3 {[%clk 1:32:13]}  a6 {[%clk 1:32:33]} 6. Be2 {[%clk 1:31:07]}  e5 {[%clk 1:32:57]} 7. Nb3 {[%clk 1:31:22]}  Be7 {[%clk 1:33:22]} 8. Be3 {[%clk 1:31:37]}  Be6 {[%clk 1:33:46]} 9. Nd5 {[%clk 1:30:19]}  Nbd7 {[%clk 1:33:19]} 10. f3 {[%clk 1:25:14]}  Nxd5 {[%clk 1:20:37]} 11. exd5 {[%clk 1:25:12]}  Bf5 {[%clk 1:21:03]} 12. O-O {[%clk 1:24:11]}  Bg5 {[%clk 1:18:24]} 13. f4 {[%clk 1:18:24]}  exf4 {[%clk 1:16:46]} 14. Bxf4 {[%clk 1:18:22]}  Bxf4 {[%clk 1:16:46]} 15. Rxf4 {[%clk 1:18:43]}  Bg6 {[%clk 1:16:35]} 16. c4 {[%clk 1:15:14]}  O-O {[%clk 1:16:28]} 17. Qd4 {[%clk 1:04:34]}  Rc8 {[%clk 1:15:06]} 18. Raf1 {[%clk 1:02:45]}  Nf6 {[%clk 1:11:56]} 19. Nd2 {[%clk 0:56:16]}  Re8 {[%clk 1:10:53]} 20. Bd3 {[%clk 0:46:13]}  Bxd3 {[%clk 1:09:10]} 21. Qxd3 {[%clk 0:46:38]}  Qb6+ {[%clk 1:07:48]} 22. Kh1 {[%clk 0:46:38]}  Qe3 {[%clk 1:03:19]} 23. Qxe3 {[%clk 0:22:17]}  Rxe3 {[%clk 1:03:39]} 24. Rd4 {[%clk 0:18:39]}  Re2 {[%clk 1:00:22]} 25. Kg1 {[%clk 0:16:28]}  Ng4 {[%clk 0:58:59]} 26. Ne4 {[%clk 0:09:30]}  Ne3 {[%clk 0:31:52]} 27. Nxd6 {[%clk 0:07:59]}  Rc7 {[%clk 0:32:04]} 28. Re4 {[%clk 0:07:36]}  h6 {[%clk 0:27:15]} 29. Rf3 {[%clk 0:06:50]}  Rxg2+ {[%clk 0:19:03]} 30. Kh1 {[%clk 0:06:46]}  Rg6 {[%clk 0:19:28]} 31. Ne8 {[%clk 0:06:19]}  Rxc4 {[%clk 0:18:56]} 32. Rfxe3 {[%clk 0:06:37]}  Rc2 {[%clk 0:17:16]} 33. Re2 {[%clk 0:06:58]}  Rc8 {[%clk 0:17:03]} 34. d6 {[%clk 0:07:08]}  Rd8 {[%clk 0:17:27]} 35. Nf6+ {[%clk 0:06:34]} 1-0


[Site "http://www.chessbomb.com"]

[Event "World Junior Chess Championship U20 2022"]
[White "Persico, Lorenzo"]
[Black "Gagic, Milan A"]
[WhiteFideId "899240"]
[BlackFideId "979805"]
[WhiteElo "2007"]
[BlackElo "2125"]
[Result "0-1"]
[Round "05"]
[TimeControl "5400+30"]
[Date "2022.10.15"]
[WhiteClock "0:10:45"]
[BlackClock "0:36:49"]

1. e4 {[%clk 1:26:12]}  e6 {[%clk 1:30:45]} 2. d4 {[%clk 1:26:36]}  d5 {[%clk 1:31:07]} 3. Nd2 {[%clk 1:26:54]}  c5 {[%clk 1:28:37]} 4. exd5 {[%clk 1:25:50]}  Qxd5 {[%clk 1:28:43]} 5. Ngf3 {[%clk 1:26:07]}  cxd4 {[%clk 1:28:49]} 6. Bc4 {[%clk 1:26:25]}  Qd6 {[%clk 1:28:48]} 7. O-O {[%clk 1:26:32]}  Nf6 {[%clk 1:29:08]} 8. Nb3 {[%clk 1:26:47]}  Nc6 {[%clk 1:28:46]} 9. Nbxd4 {[%clk 1:26:54]}  Nxd4 {[%clk 1:29:11]} 10. Nxd4 {[%clk 1:27:11]}  Be7 {[%clk 1:29:10]} 11. b3 {[%clk 1:27:13]}  O-O {[%clk 1:22:51]} 12. Bb2 {[%clk 1:27:26]}  Bd7 {[%clk 1:19:25]} 13. Qf3 {[%clk 1:21:45]}  Bc6 {[%clk 1:15:12]} 14. Nxc6 {[%clk 1:21:40]}  Qxc6 {[%clk 1:16:02]} 15. Qxc6 {[%clk 0:52:40]}  bxc6 {[%clk 1:16:26]} 16. Ba6 {[%clk 0:47:12]}  Rad8 {[%clk 1:12:00]} 17. Rad1 {[%clk 0:43:28]}  Nd5 {[%clk 1:03:11]} 18. Bb7 {[%clk 0:31:02]}  Nb4 {[%clk 0:58:21]} 19. c3 {[%clk 0:28:30]}  Nd3 {[%clk 0:50:31]} 20. Ba1 {[%clk 0:28:37]}  Bc5 {[%clk 0:45:26]} 21. Rxd3 {[%clk 0:18:24]}  Rxd3 {[%clk 0:45:46]} 22. Bxc6 {[%clk 0:18:24]}  a5 {[%clk 0:40:59]} 23. Be4 {[%clk 0:10:14]}  Rd2 {[%clk 0:40:17]} 24. a4 {[%clk 0:10:08]}  Rfd8 {[%clk 0:39:57]} 25. g3 {[%clk 0:10:08]}  f5 {[%clk 0:36:47]} 26. Bf3 {[%clk 0:10:10]}  Rxf2 {[%clk 0:35:35]} 27. Rxf2 {[%clk 0:10:09]}  Rd2 {[%clk 0:36:00]} 28. b4 {[%clk 0:10:22]}  Bxf2+ {[%clk 0:36:26]} 29. Kf1 {[%clk 0:10:45]}  Ba7 {[%clk 0:36:49]} 0-1


[Site "http://www.chessbomb.com"]